Workbook

Sheet ЛИСТ1
A1: =ЛИСТ2!B2 -> 130
K5: =INDIRECT("ЛИСТ2!C"&ROW(INDIRECT(SUBSTITUTE(формула,"=",)))) -> 127
E7: =INDIRECT("ЛИСТ2!E"&ROW(INDIRECT(SUBSTITUTE(формула,"=",)))) -> 126
L9: =INDIRECT("ЛИСТ2!D"&ROW(INDIRECT(SUBSTITUTE(формула,"=",)))) -> 110
B12: =INDIRECT("ЛИСТ2!J"&ROW(INDIRECT(SUBSTITUTE(формула,"=",)))) -> 11726
D15: ГДЕ n-номер строки импортированного значения в ЛИСТ1 A1 (т.е. в моем примере 2)

Sheet ЛИСТ2
A2: 40 | B2: 130 | C2: 127 | D2: 110 | E2: 126 | F2: =A2+B2+C2+D2+E2 -> 533 | G2: 22 | H2: 1 | I2: =H2*G2:G3 -> 22 | J2: =F2*G2 -> 11726 | K2: =(J2/100)*63 -> 7387.38 | L2: =18*H2*G2 -> 396 | M2: =L2*(F2/2) -> 105534
A3: 20 | B3: 110 | C3: 126 | D3: 121 | E3: 153 | F3: 530 | G3: 24 | H3: 1 | I3: =H3*G3:G4 -> 24 | J3: =F3*G3 -> 12720 | K3: =(J3/100)*63 -> 8013.6 | L3: =18*H3*G3 -> 432 | M3: =L3*(F3/2) -> 114480
A4: 40 | B4: 121 | C4: 153 | D4: 130 | E4: 140 | F4: 584 | G4: 23 | H4: 1 | I4: 23 | J4: 13432 | K4: 8462.16 | L4: 414 | M4: 120888
A5: 61 | B5: 130 | C5: 140 | D5: 130 | E5: 127 | F5: 588 | G5: 25 | H5: 1 | I5: 25 | J5: 14700 | K5: 9261 | L5: 450 | M5: 132300
A6: 40 | B6: 130 | C6: 127 | D6: 87 | E6: 87 | F6: 471 | G6: 25 | H6: 1 | I6: 25 | J6: 11775 | K6: 7418.25 | L6: 450 | M6: 105975
A7: 40 | B7: 87 | C7: 87 | D7: 110 | E7: 130 | F7: 454 | G7: 23 | H7: 2 | I7: 46 | J7: 10442 | K7: 6578.46 | L7: 828 | M7: 187956
A8: 20 | B8: 110 | C8: 130 | D8: 65 | E8: 65 | F8: 390 | G8: 23 | H8: 1 | I8: 23 | J8: 8970 | K8: 5651.1 | L8: 414 | M8: 80730
A9: 20 | B9: 65 | C9: 65 | D9: 130 | E9: 157 | F9: 437 | G9: 3 | H9: 2 | I9: 6 | J9: 1311 | K9: 825.93 | L9: 108 | M9: 23598
A10: 40 | B10: 130 | C10: 157 | D10: 65 | E10: 65 | F10: 457 | G10: 23 | H10: 1 | I10: 23 | J10: 10511 | K10: 6621.93 | L10: 414 | M10: 94599
A11: 20 | B11: 65 | C11: 65 | D11: 85 | E11: 85 | F11: 320 | G11: 14 | H11: 2 | I11: 28 | J11: 4480 | K11: 2822.4 | L11: 504 | M11: 80640
A12: 40 | B12: 85 | C12: 85 | D12: 67 | E12: 80 | F12: 357 | G12: 23 | H12: 2 | I12: 46 | J12: 8211 | K12: 5172.93 | L12: 828 | M12: 147798
A13: 20 | B13: 67 | C13: 80 | D13: 68 | E13: 68 | F13: 303 | G13: 22 | H13: 1 | I13: 22 | J13: 6666 | K13: 4199.58 | L13: 396 | M13: 59994
A14: 61 | B14: 68 | C14: 68 | D14: 110 | E14: 130 | F14: 437 | G14: 23 | H14: 2 | I14: 46 | J14: 10051 | K14: 6332.13 | L14: 828 | M14: 180918
A15: 20 | B15: 110 | C15: 130 | D15: 110 | E15: 130 | F15: 500 | G15: 20 | H15: 1 | I15: 20 | J15: 10000 | K15: 6300 | L15: 360 | M15: 90000
A16: 20 | B16: 110 | C16: 130 | D16: 110 | E16: 130 | F16: 500 | G16: 25 | H16: 1 | I16: 25 | J16: 12500 | K16: 7875 | L16: 450 | M16: 112500
A17: 20 | B17: 110 | C17: 130 | D17: 87 | E17: 87 | F17: 434 | G17: 5 | H17: 1 | I17: 5 | J17: 2170 | K17: 1367.1 | L17: 90 | M17: 19530
A18: 40 | B18: 87 | C18: 87 | D18: 110 | E18: 130 | F18: 454 | G18: 10 | H18: 2 | I18: 20 | J18: 4540 | K18: 2860.2 | L18: 360 | M18: 81720
A19: 20 | B19: 110 | C19: 130 | D19: 65 | E19: 65 | F19: 390 | G19: 12 | H19: 1 | I19: 12 | J19: 4680 | K19: 2948.4 | L19: 216 | M19: 42120
A20: 20 | B20: 65 | C20: 65 | D20: 43 | E20: 43 | F20: 236 | G20: 20 | H20: 2 | I20: 40 | J20: 4720 | K20: 2973.6 | L20: 720 | M20: 84960
A21: 61 | B21: 43 | C21: 43 | D21: 45 | E21: 83 | F21: 275 | G21: 19 | H21: 2 | I21: 38 | J21: 5225 | K21: 3291.75 | L21: 684 | M21: 94050
A22: 20 | B22: 110 | C22: 130 | F22: 260 | G22: 4 | H22: 1 | I22: 4 | J22: 1040 | K22: 655.2 | L22: 72 | M22: 9360
A23: 40 | B23: 87 | C23: 87 | D23: 85 | E23: 78 | F23: 377 | G23: 6 | H23: 2 | I23: 12 | J23: 2262 | K23: 1425.06 | L23: 216 | M23: 40716
A24: 40 | B24: 121 | C24: 153 | F24: 314 | G24: 14 | H24: 1 | I24: 14 | J24: 4396 | K24: 2769.48 | L24: 252 | M24: 39564
A25: 40 | B25: 85 | C25: 85 | D25: 83 | E25: 76 | F25: 369 | G25: 22 | H25: 2 | I25: 44 | J25: 8118 | K25: 5114.34 | L25: 792 | M25: 146124
A26: 40 | B26: 121 | C26: 153 | F26: 314 | G26: 15 | H26: 1 | I26: 15 | J26: 4710 | K26: 2967.3 | L26: 270 | M26: 42390
A27: 20 | B27: 67 | C27: 67 | D27: 67 | E27: 80 | F27: 301 | G27: 12 | H27: 2 | I27: 24 | J27: 3612 | K27: 2275.56 | L27: 432 | M27: 65016
A28: 40 | B28: 130 | C28: 157 | F28: 327 | G28: 18 | H28: 1 | I28: 18 | J28: 5886 | K28: 3708.18 | L28: 324 | M28: 52974
A29: 20 | B29: 65 | C29: 65 | D29: 65 | E29: 79 | F29: 294 | G29: 3 | H29: 2 | I29: 6 | J29: 882 | K29: 555.66 | L29: 108 | M29: 15876
A30: 40 | B30: 121 | C30: 153 | F30: 314 | G30: 8 | H30: 1 | I30: 8 | J30: 2512 | K30: 1582.56 | L30: 144 | M30: 22608
A31: 61 | B31: 66 | C31: 66 | D31: 68 | E31: 88 | F31: 349 | G31: 9 | H31: 2 | I31: 18 | J31: 3141 | K31: 1978.83 | L31: 324 | M31: 56538
A32: 20 | B32: 69 | C32: 69 | D32: 69 | E32: 82 | F32: 309 | G32: 16 | H32: 2 | I32: =H32*G32:G32 -> 32 | J32: 4944 | K32: 3114.72 | L32: 576 | M32: 88992
A33: 20 | B33: 110 | C33: 130 | F33: 260 | G33: 5 | H33: 1 | I33: =H33*G33:G34 -> 5 | J33: =F33*G33 -> 1300 | K33: 819 | L33: =18*H33*G33 -> 90 | M33: =L33*(F33/2) -> 11700
A34: 20 | B34: 65 | C34: 65 | D34: 65 | E34: 79 | F34: =A34+B34+C34+D34+E34 -> 294 | G34: 20 | H34: 2 | I34: =H34*G34:G35 -> 40 | J34: =F34*G34 -> 5880 | K34: 3704.4 | L34: =18*H34*G34 -> 720 | M34: =L34*(F34/2) -> 105840
A35: 20 | B35: 67 | C35: 67 | D35: 67 | E35: 80 | F35: 301 | G35: 19 | H35: 2 | I35: 38 | J35: 5719 | K35: 3602.97 | L35: 684 | M35: 102942
A36: 61 | B36: 130 | C36: 140 | F36: 331 | G36: 1 | H36: 1 | I36: 1 | J36: 331 | K36: 208.53 | L36: 18 | M36: 2979
A37: 61 | B37: 66 | C37: 66 | D37: 68 | E37: 88 | F37: 349 | G37: 18 | H37: 2 | I37: 36 | J37: 6282 | K37: 3957.66 | L37: 648 | M37: 113076
A38: 40 | B38: 130 | C38: 127 | F38: 297 | G38: 17 | H38: 1 | I38: 17 | J38: 5049 | K38: 3180.87 | L38: 306 | M38: 45441
A39: 40 | B39: 130 | C39: 127 | F39: 297 | G39: 16 | H39: 1 | I39: 16 | J39: 4752 | K39: 2993.76 | L39: 288 | M39: 42768
A40: 61 | B40: 43 | C40: 43 | D40: 45 | E40: 83 | F40: 275 | G40: 13 | H40: 2 | I40: 26 | J40: 3575 | K40: 2252.25 | L40: 468 | M40: 64350
A41: 20 | B41: 114 | C41: 114 | D41: 114 | E41: 135 | F41: 497 | G41: 12 | H41: 2 | I41: 24 | J41: 5964 | K41: 3757.32 | L41: 432 | M41: 107352
A42: 20 | B42: 110 | C42: 130 | F42: 260 | G42: 4 | H42: 1 | I42: 4 | J42: 1040 | K42: 655.2 | L42: 72 | M42: 9360
A43: 40 | B43: 121 | C43: 153 | F43: 314 | G43: 9 | H43: 1 | I43: 9 | J43: 2826 | K43: 1780.38 | L43: 162 | M43: 25434
A44: 20 | B44: 67 | C44: 67 | D44: 67 | E44: 80 | F44: 301 | G44: 8 | H44: 2 | I44: 16 | J44: 2408 | K44: 1517.04 | L44: 288 | M44: 43344
A45: 20 | B45: 110 | C45: 130 | F45: 260 | G45: 22 | H45: 1 | I45: 22 | J45: 5720 | K45: 3603.6 | L45: 396 | M45: 51480
A46: 61 | B46: 130 | C46: 140 | F46: 331 | G46: 5 | H46: 1 | I46: 5 | J46: 1655 | K46: 1042.65 | L46: 90 | M46: 14895
A47: 20 | B47: 69 | C47: 69 | D47: 69 | E47: 82 | F47: 309 | G47: 1 | H47: 2 | I47: 2 | J47: 309 | K47: 194.67 | L47: 36 | M47: 5562
A48: 20 | B48: 112 | C48: 112 | D48: 110 | E48: 130 | F48: 484 | G48: 10 | H48: 2 | I48: 20 | J48: 4840 | K48: 3049.2 | L48: 360 | M48: 87120
A49: 40 | B49: 121 | C49: 153 | F49: 314 | G49: 22 | H49: 1 | I49: 22 | J49: 6908 | K49: 4352.04 | L49: 396 | M49: 62172
A50: 40 | B50: 87 | C50: 87 | D50: 85 | E50: 78 | F50: 377 | G50: 5 | H50: 2 | I50: 10 | J50: 1885 | K50: 1187.55 | L50: 180 | M50: 33930
A51: 20 | B51: 110 | C51: 130 | F51: 260 | G51: 10 | H51: 1 | I51: 10 | J51: 2600 | K51: 1638 | L51: 180 | M51: 23400
A52: 61 | B52: 45 | C52: 45 | D52: 45 | E52: 83 | F52: 279 | G52: 15 | H52: 2 | I52: 30 | J52: 4185 | K52: 2636.55 | L52: 540 | M52: 75330
A53: 40 | B53: 121 | C53: 153 | F53: 314 | G53: 1 | H53: 1 | I53: 1 | J53: 314 | K53: 197.82 | L53: 18 | M53: 2826
A54: 20 | B54: 69 | C54: 69 | D54: 69 | E54: 82 | F54: 309 | G54: 14 | H54: 2 | I54: 28 | J54: 4326 | K54: 2725.38 | L54: 504 | M54: 77868
A55: 40 | B55: 130 | C55: 127 | F55: 297 | G55: 16 | H55: 1 | I55: 16 | J55: 4752 | K55: 2993.76 | L55: 288 | M55: 42768
A56: 40 | B56: 121 | C56: 153 | F56: 314 | G56: 6 | H56: 1 | I56: 6 | J56: 1884 | K56: 1186.92 | L56: 108 | M56: 16956
A57: 40 | B57: 127 | C57: 125 | F57: 292 | G57: 10 | H57: 1 | I57: 10 | J57: 2920 | K57: 1839.6 | L57: 180 | M57: 26280
A58: 61 | B58: 70 | C58: 70 | D58: 68 | E58: 88 | F58: 357 | G58: 14 | H58: 2 | I58: 28 | J58: 4998 | K58: 3148.74 | L58: 504 | M58: 89964
A59: 61 | B59: 68 | C59: 68 | D59: 70 | E59: 90 | F59: 357 | G59: 5 | H59: 2 | I59: 10 | J59: 1785 | K59: 1124.55 | L59: 180 | M59: 32130
A60: 20 | B60: 110 | C60: 111 | D60: 111 | E60: 130 | F60: 482 | G60: 15 | H60: 2 | I60: 30 | J60: 7230 | K60: 4554.9 | L60: 540 | M60: 130140
A61: 20 | B61: 114 | C61: 114 | D61: 114 | E61: 135 | F61: 497 | G61: 6 | H61: 2 | I61: 12 | J61: 2982 | K61: 1878.66 | L61: 216 | M61: 53676
A62: 20 | B62: 110 | C62: 130 | F62: 260 | G62: 21 | H62: 1 | I62: 21 | J62: 5460 | K62: 3439.8 | L62: 378 | M62: 49140
A63: 20 | B63: 110 | C63: 110 | D63: 110 | E63: 130 | F63: 480 | G63: 10 | H63: 2 | I63: =H63*G63:G63 -> 20 | J63: 4800 | K63: 3024 | L63: 360 | M63: 86400
A64: 40 | B64: 89 | C64: 89 | D64: 87 | E64: 80 | F64: 385 | G64: 3 | H64: 2 | I64: =H64*G64:G65 -> 6 | J64: =F64*G64 -> 1155 | K64: 727.65 | L64: =18*H64*G64 -> 108 | M64: =L64*(F64/2) -> 20790
A65: 40 | B65: 85 | C65: 85 | D65: 83 | E65: 76 | F65: 369 | G65: 17 | H65: 2 | I65: =H65*G65:G66 -> 34 | J65: =F65*G65 -> 6273 | K65: 3951.99 | L65: =18*H65*G65 -> 612 | M65: =L65*(F65/2) -> 112914
A66: 40 | B66: 87 | C66: 87 | D66: 85 | E66: 78 | F66: =A66+B66+C66+D66+E66 -> 377 | G66: 4 | H66: 2 | I66: 8 | J66: 1508 | K66: 950.04 | L66: 144 | M66: 27144
A67: 40 | B67: 130 | C67: 127 | F67: 297 | G67: 18 | H67: 1 | I67: 18 | J67: 5346 | K67: =(J67/100)*63 -> 3367.98 | L67: 324 | M67: 48114
A68: 61 | B68: 68 | C68: 68 | D68: 70 | E68: 90 | F68: 357 | G68: 25 | H68: 2 | I68: 50 | J68: 8925 | K68: 5622.75 | L68: 900 | M68: 160650
A69: 20 | B69: 67 | C69: 80 | F69: 167 | G69: 26 | H69: 1 | I69: 26 | J69: 4342 | K69: 2735.46 | L69: 468 | M69: 39078
A70: 20 | B70: 110 | C70: 130 | F70: 260 | G70: 14 | H70: 1 | I70: 14 | J70: 3640 | K70: 2293.2 | L70: 252 | M70: 32760
A71: 61 | B71: 66 | C71: 66 | D71: 68 | E71: 88 | F71: 349 | G71: 15 | H71: 2 | I71: 30 | J71: 5235 | K71: 3298.05 | L71: 540 | M71: 94230
A72: 40 | B72: 127 | C72: 125 | F72: 292 | G72: 3 | H72: 1 | I72: 3 | J72: 876 | K72: 551.88 | L72: 54 | M72: 7884
A73: 40 | B73: 87 | C73: 87 | D73: 85 | E73: 78 | F73: 377 | G73: 25 | H73: 2 | I73: 50 | J73: 9425 | K73: 5937.75 | L73: 900 | M73: 169650
A74: 20 | B74: 69 | C74: 69 | D74: 69 | E74: 82 | F74: 309 | G74: 16 | H74: 2 | I74: 32 | J74: 4944 | K74: 3114.72 | L74: 576 | M74: 88992
A75: 40 | B75: 85 | C75: 85 | D75: 83 | E75: 76 | F75: 369 | G75: 6 | H75: 2 | I75: 12 | J75: 2214 | K75: 1394.82 | L75: 216 | M75: 39852
A76: 61 | B76: 45 | C76: 45 | D76: 47 | E76: 85 | F76: 283 | G76: 13 | H76: 2 | I76: 26 | J76: 3679 | K76: 2317.77 | L76: 468 | M76: 66222
A77: 61 | B77: 43 | C77: 43 | D77: 45 | E77: 83 | F77: 275 | G77: 9 | H77: 2 | I77: 18 | J77: 2475 | K77: 1559.25 | L77: 324 | M77: 44550
A78: 20 | B78: 114 | C78: 114 | D78: 114 | E78: 135 | F78: 497 | G78: 18 | H78: 2 | I78: 36 | J78: 8946 | K78: 5635.98 | L78: 648 | M78: 161028
A79: 20 | B79: 110 | C79: 130 | F79: 260 | G79: 15 | H79: 1 | I79: 15 | J79: 3900 | K79: 2457 | L79: 270 | M79: 35100
A80: 20 | B80: 110 | C80: 110 | D80: 110 | E80: 130 | F80: 480 | G80: 13 | H80: 2 | I80: 26 | J80: 6240 | K80: 3931.2 | L80: 468 | M80: 112320
A81: 20 | B81: 69 | C81: 69 | D81: 69 | E81: 82 | F81: 309 | G81: 6 | H81: 2 | I81: 12 | J81: 1854 | K81: 1168.02 | L81: 216 | M81: 33372
A82: 61 | B82: 68 | C82: 68 | D82: 70 | E82: 90 | F82: 357 | G82: 1 | H82: 2 | I82: 2 | J82: 357 | K82: 224.91 | L82: 36 | M82: 6426
F83: 0 | I83: 0 | J83: 0 | K83: 0 | L83: 0 | M83: 0
F84: 0 | I84: 0 | J84: 0 | K84: 0 | L84: 0 | M84: 0
F85: 0 | I85: =H85*G85:G86 -> 0 | J85: 0 | K85: 0 | L85: 0 | M85: 0
F86: 0 | I86: =H86*G86:G88 -> 0 | J86: 0 | K86: 0 | L86: 0 | M86: 0
F87: =SUM(F2:F86) -> 28896 | G87: 1108 | H87: 125 | I87: 1667 | J87: 406346 | K87: 255997.98 | L87: 30006 | M87: =SUM(M2:M86) -> 5478147
A88: 20 | B88: 110 | C88: 110 | D88: 110 | E88: 130 | F88: =[1]Лист1!F95+[1]Лист1!G95+[1]Лист1!H95+[1]Лист1!I95+[1]Лист1!J95 -> 480 | G88: 18 | H88: 2 | I88: 36 | J88: 8640 | K88: =(J88/100)*47 -> 4060.8 | L88: =13.5*H88*G88 -> 486 | M88: 116640
A89: 61 | B89: 130 | C89: 140 | F89: =[1]Лист1!F96+[1]Лист1!G96+[1]Лист1!H96+[1]Лист1!I96+[1]Лист1!J96 -> 377 | G89: 3 | H89: 2 | I89: 6 | J89: 1131 | K89: 531.57 | L89: =13.5*H89*G89 -> 81 | M89: 15268.5
A90: 40 | B90: 130 | C90: 127 | F90: =[1]Лист1!F97+[1]Лист1!G97+[1]Лист1!H97+[1]Лист1!I97+[1]Лист1!J97 -> 257 | G90: 18 | H90: 2 | I90: 36 | J90: 4626 | K90: 2174.22 | L90: 486 | M90: 62451
A91: 40 | B91: 127 | C91: 125 | F91: =[1]Лист1!F98+[1]Лист1!G98+[1]Лист1!H98+[1]Лист1!I98+[1]Лист1!J98 -> 260 | G91: 20 | H91: 1 | I91: 20 | J91: 5200 | K91: 2444 | L91: 270 | M91: 35100
A92: 40 | B92: 127 | C92: 125 | F92: =[1]Лист1!F99+[1]Лист1!G99+[1]Лист1!H99+[1]Лист1!I99+[1]Лист1!J99 -> 369 | G92: 15 | H92: 2 | I92: 30 | J92: 5535 | K92: 2601.45 | L92: 405 | M92: 74722.5
A93: 61 | B93: 43 | C93: 43 | D93: 45 | E93: 83 | F93: =[1]Лист1!F100+[1]Лист1!G100+[1]Лист1!H100+[1]Лист1!I100+[1]Лист1!J100 -> 330 | G93: 23 | H93: 1 | I93: 23 | J93: 7590 | K93: 3567.3 | L93: 310.5 | M93: 51232.5
A94: 20 | B94: 110 | C94: 125 | F94: =[1]Лист1!F101+[1]Лист1!G101+[1]Лист1!H101+[1]Лист1!I101+[1]Лист1!J101 -> 327 | G94: 10 | H94: 1 | I94: 10 | J94: 3270 | K94: 1536.9 | L94: 135 | M94: 22072.5
A95: 20 | B95: 110 | C95: 110 | F95: =[1]Лист1!F102+[1]Лист1!G102+[1]Лист1!H102+[1]Лист1!I102+[1]Лист1!J102 -> 294 | G95: 17 | H95: 2 | I95: =H95*G95:G95 -> 34 | J95: 4998 | K95: 2349.06 | L95: 459 | M95: 67473
A96: 40 | B96: 83 | C96: 83 | D96: 81 | E96: 76 | F96: =[1]Лист1!F103+[1]Лист1!G103+[1]Лист1!H103+[1]Лист1!I103+[1]Лист1!J103 -> 301 | G96: 4 | H96: 2 | I96: =H96*G96:G97 -> 8 | J96: =F96*G96 -> 1204 | K96: =(J96/100)*47 -> 565.88 | L96: 108 | M96: =L96*(F96/2) -> 16254
A97: 40 | B97: 130 | C97: 157 | F97: =[1]Лист1!F104+[1]Лист1!G104+[1]Лист1!H104+[1]Лист1!I104+[1]Лист1!J104 -> 357 | G97: 16 | H97: 2 | I97: =H97*G97:G98 -> 32 | J97: =F97*G97 -> 5712 | K97: =(J97/100)*47 -> 2684.64 | L97: 432 | M97: =L97*(F97/2) -> 77112
A98: 20 | B98: 67 | C98: 67 | D98: 67 | E98: 80 | F98: =ЛИСТ2!A51+ЛИСТ2!B51+ЛИСТ2!C51+ЛИСТ2!D51+ЛИСТ2!E51 -> 260 | G98: 11 | H98: 1 | I98: 11 | J98: 2860 | K98: 1344.2 | L98: 148.5 | M98: 19305
A99: 20 | B99: 110 | C99: 126 | F99: =ЛИСТ2!A52+ЛИСТ2!B52+ЛИСТ2!C52+ЛИСТ2!D52+ЛИСТ2!E52 -> 279 | G99: 26 | H99: 2 | I99: 52 | J99: 7254 | K99: 3409.38 | L99: 702 | M99: 97929
A100: 20 | B100: 110 | C100: 110 | D100: 110 | E100: 130 | F100: =ЛИСТ2!A53+ЛИСТ2!B53+ЛИСТ2!C53+ЛИСТ2!D53+ЛИСТ2!E53 -> 314 | G100: 9 | H100: 1 | I100: 9 | J100: 2826 | K100: 1328.22 | L100: 121.5 | M100: 19075.5
A101: 40 | B101: 127 | C101: 125 | F101: =ЛИСТ2!A54+ЛИСТ2!B54+ЛИСТ2!C54+ЛИСТ2!D54+ЛИСТ2!E54 -> 309 | G101: 16 | H101: 2 | I101: 32 | J101: 4944 | K101: 2323.68 | L101: 432 | M101: 66744
A102: 40 | B102: 121 | C102: 153 | F102: =ЛИСТ2!A55+ЛИСТ2!B55+ЛИСТ2!C55+ЛИСТ2!D55+ЛИСТ2!E55 -> 297 | G102: 24 | H102: 1 | I102: 24 | J102: 7128 | K102: 3350.16 | L102: 324 | M102: 48114
A103: 61 | B103: 43 | C103: 43 | D103: 45 | E103: 83 | F103: =[1]Лист1!F11+[1]Лист1!G11+[1]Лист1!H11+[1]Лист1!I11+[1]Лист1!J11 -> 301 | G103: 11 | H103: 1 | I103: 11 | J103: 3311 | K103: 1556.17 | L103: 148.5 | M103: 22349.25
A104: 40 | B104: 130 | C104: 157 | F104: =[1]Лист1!F12+[1]Лист1!G12+[1]Лист1!H12+[1]Лист1!I12+[1]Лист1!J12 -> 256 | G104: 6 | H104: 2 | I104: 12 | J104: 1536 | K104: 721.92 | L104: 162 | M104: 20736
A105: 61 | B105: 68 | C105: 68 | D105: 70 | E105: 90 | F105: =[1]Лист1!F13+[1]Лист1!G13+[1]Лист1!H13+[1]Лист1!I13+[1]Лист1!J13 -> 480 | G105: 10 | H105: 1 | I105: 10 | J105: 4800 | K105: 2256 | L105: 135 | M105: 32400
A106: 61 | B106: 68 | C106: 68 | D106: 68 | E106: 88 | F106: =[1]Лист1!F14+[1]Лист1!G14+[1]Лист1!H14+[1]Лист1!I14+[1]Лист1!J14 -> 292 | G106: 15 | H106: 2 | I106: 30 | J106: 4380 | K106: 2058.6 | L106: 405 | M106: 59130
A107: 61 | B107: 68 | C107: 68 | D107: 68 | E107: 88 | F107: =[1]Лист1!F15+[1]Лист1!G15+[1]Лист1!H15+[1]Лист1!I15+[1]Лист1!J15 -> 314 | G107: 22 | H107: 2 | I107: 44 | J107: 6908 | K107: 3246.76 | L107: 594 | M107: 93258
A108: 20 | B108: 110 | C108: 130 | F108: =[1]Лист1!F16+[1]Лист1!G16+[1]Лист1!H16+[1]Лист1!I16+[1]Лист1!J16 -> 275 | G108: 6 | H108: 2 | I108: 12 | J108: 1650 | K108: 775.5 | L108: 162 | M108: 22275
A109: 61 | B109: 66 | C109: 107 | F109: =[1]Лист1!F17+[1]Лист1!G17+[1]Лист1!H17+[1]Лист1!I17+[1]Лист1!J17 -> 327 | G109: 13 | H109: 2 | I109: 26 | J109: 4251 | K109: 1997.97 | L109: 351 | M109: 57388.5
A110: 40 | B110: 87 | C110: 87 | D110: 85 | E110: 78 | F110: =[1]Лист1!F18+[1]Лист1!G18+[1]Лист1!H18+[1]Лист1!I18+[1]Лист1!J18 -> 357 | G110: 19 | H110: 1 | I110: 19 | J110: 6783 | K110: 3188.01 | L110: 256.5 | M110: 45785.25
A111: 40 | B111: 83 | C111: 83 | D111: 81 | E111: 76 | F111: =[1]Лист1!F19+[1]Лист1!G19+[1]Лист1!H19+[1]Лист1!I19+[1]Лист1!J19 -> 353 | G111: 18 | H111: 2 | I111: 36 | J111: 6354 | K111: 2986.38 | L111: 486 | M111: 85779
A112: 40 | B112: 130 | C112: 127 | F112: =[1]Лист1!F20+[1]Лист1!G20+[1]Лист1!H20+[1]Лист1!I20+[1]Лист1!J20 -> 353 | G112: 14 | H112: 1 | I112: 14 | J112: 4942 | K112: 2322.74 | L112: 189 | M112: 33358.5
A113: 20 | B113: 110 | C113: 110 | D113: 110 | E113: 130 | F113: =[1]Лист1!F21+[1]Лист1!G21+[1]Лист1!H21+[1]Лист1!I21+[1]Лист1!J21 -> 260 | G113: 13 | H113: 2 | I113: 26 | J113: 3380 | K113: 1588.6 | L113: 351 | M113: 45630
A114: 20 | B114: 110 | C114: 110 | D114: 110 | E114: 130 | F114: =[1]Лист1!F22+[1]Лист1!G22+[1]Лист1!H22+[1]Лист1!I22+[1]Лист1!J22 -> 234 | G114: 6 | H114: 1 | I114: 6 | J114: 1404 | K114: 659.88 | L114: 81 | M114: 9477
A115: 20 | B115: 69 | C115: 69 | D115: 69 | E115: 82 | F115: =[1]Лист1!F23+[1]Лист1!G23+[1]Лист1!H23+[1]Лист1!I23+[1]Лист1!J23 -> 377 | G115: 12 | H115: 1 | I115: 12 | J115: 4524 | K115: 2126.28 | L115: 162 | M115: 30537
A116: 60 | B116: 130 | C116: 140 | F116: =[1]Лист1!F24+[1]Лист1!G24+[1]Лист1!H24+[1]Лист1!I24+[1]Лист1!J24 -> 363 | G116: 24 | H116: 1 | I116: 24 | J116: 8712 | K116: 4094.64 | L116: 324 | M116: 58806
A117: 61 | B117: 68 | C117: 68 | D117: 68 | E117: 88 | F117: =[1]Лист1!F25+[1]Лист1!G25+[1]Лист1!H25+[1]Лист1!I25+[1]Лист1!J25 -> 297 | G117: 3 | H117: 1 | I117: 3 | J117: 891 | K117: 418.77 | L117: 40.5 | M117: 6014.25
A118: 20 | B118: 110 | C118: 110 | F118: =[1]Лист1!F26+[1]Лист1!G26+[1]Лист1!H26+[1]Лист1!I26+[1]Лист1!J26 -> 480 | G118: 16 | H118: 2 | I118: 32 | J118: 7680 | K118: 3609.6 | L118: 432 | M118: 103680
A119: 40 | B119: 85 | C119: 85 | D119: 83 | E119: 76 | F119: =[1]Лист1!F27+[1]Лист1!G27+[1]Лист1!H27+[1]Лист1!I27+[1]Лист1!J27 -> 480 | G119: 10 | H119: 1 | I119: 10 | J119: 4800 | K119: 2256 | L119: 135 | M119: 32400
A120: 40 | B120: 121 | C120: 153 | F120: =[1]Лист1!F28+[1]Лист1!G28+[1]Лист1!H28+[1]Лист1!I28+[1]Лист1!J28 -> 309 | G120: 6 | H120: 1 | I120: 6 | J120: 1854 | K120: 871.38 | L120: 81 | M120: 12514.5
A121: 40 | B121: 83 | C121: 83 | D121: 81 | E121: 76 | F121: =[1]Лист1!F29+[1]Лист1!G29+[1]Лист1!H29+[1]Лист1!I29+[1]Лист1!J29 -> 330 | G121: 12 | H121: 2 | I121: 24 | J121: 3960 | K121: 1861.2 | L121: 324 | M121: 53460
A122: 20 | B122: 69 | C122: 69 | D122: 69 | E122: 82 | F122: =[1]Лист1!F30+[1]Лист1!G30+[1]Лист1!H30+[1]Лист1!I30+[1]Лист1!J30 -> 353 | G122: 9 | H122: 1 | I122: 9 | J122: 3177 | K122: 1493.19 | L122: 121.5 | M122: 21444.75
A123: 20 | B123: 110 | C123: 130 | F123: =[1]Лист1!F31+[1]Лист1!G31+[1]Лист1!H31+[1]Лист1!I31+[1]Лист1!J31 -> 240 | G123: 4 | H123: 1 | I123: 4 | J123: 960 | K123: 451.2 | L123: 54 | M123: 6480
A124: 61 | B124: 66 | C124: 107 | F124: =[1]Лист1!F32+[1]Лист1!G32+[1]Лист1!H32+[1]Лист1!I32+[1]Лист1!J32 -> 369 | G124: 10 | H124: 2 | I124: 20 | J124: 3690 | K124: 1734.3 | L124: 270 | M124: 49815
A125: 20 | B125: 69 | C125: 75 | F125: =[1]Лист1!F33+[1]Лист1!G33+[1]Лист1!H33+[1]Лист1!I33+[1]Лист1!J33 -> 314 | G125: 26 | H125: 1 | I125: 26 | J125: 8164 | K125: 3837.08 | L125: 351 | M125: 55107
A126: 20 | B126: 69 | C126: 75 | F126: =[1]Лист1!F34+[1]Лист1!G34+[1]Лист1!H34+[1]Лист1!I34+[1]Лист1!J34 -> 363 | G126: 12 | H126: 2 | I126: =H126*G126:G126 -> 24 | J126: 4356 | K126: 2047.32 | L126: 324 | M126: 58806
A127: 61 | B127: 45 | C127: 45 | D127: 47 | E127: 85 | F127: =[1]Лист1!F35+[1]Лист1!G35+[1]Лист1!H35+[1]Лист1!I35+[1]Лист1!J35 -> 309 | G127: 6 | H127: 2 | I127: =H127*G127:G128 -> 12 | J127: =F127*G127 -> 1854 | K127: =(J127/100)*47 -> 871.38 | L127: 162 | M127: =L127*(F127/2) -> 25029
A128: 61 | B128: 68 | C128: 68 | D128: 68 | E128: 88 | F128: =[1]Лист1!F36+[1]Лист1!G36+[1]Лист1!H36+[1]Лист1!I36+[1]Лист1!J36 -> 260 | G128: 3 | H128: 1 | I128: =H128*G128:G129 -> 3 | J128: =F128*G128 -> 780 | K128: =(J128/100)*47 -> 366.6 | L128: 40.5 | M128: =L128*(F128/2) -> 5265
A129: 40 | B129: 130 | C129: 157 | F129: =[1]Лист1!F37+[1]Лист1!G37+[1]Лист1!H37+[1]Лист1!I37+[1]Лист1!J37 -> 234 | G129: 9 | H129: 1 | I129: 9 | J129: 2106 | K129: 989.82 | L129: 121.5 | M129: 14215.5
A130: 20 | B130: 110 | C130: 130 | F130: =[1]Лист1!F38+[1]Лист1!G38+[1]Лист1!H38+[1]Лист1!I38+[1]Лист1!J38 -> 164 | G130: 6 | H130: 1 | I130: 6 | J130: 984 | K130: 462.48 | L130: 81 | M130: 6642
A131: 20 | B131: 110 | C131: 130 | F131: =[1]Лист1!F39+[1]Лист1!G39+[1]Лист1!H39+[1]Лист1!I39+[1]Лист1!J39 -> 164 | G131: 14 | H131: 2 | I131: 28 | J131: 2296 | K131: 1079.12 | L131: 378 | M131: 30996
A132: 20 | B132: 65 | C132: 65 | D132: 65 | E132: 79 | F132: =[1]Лист1!F40+[1]Лист1!G40+[1]Лист1!H40+[1]Лист1!I40+[1]Лист1!J40 -> 283 | G132: 2 | H132: 1 | I132: 2 | J132: 566 | K132: 266.02 | L132: 27 | M132: 3820.5
F133: =A133+B133+C133+D133+E133 -> 0 | I133: 0 | J133: 0 | K133: 0 | L133: 0 | M133: 0
F134: =A134+B134+C134+D134+E134 -> 0 | I134: 0 | J134: 0 | K134: 0 | L134: 0 | M134: 0
F135: =A135+B135+C135+D135+E135 -> 0 | I135: 0 | J135: 0 | K135: 0 | L135: 0 | M135: 0
F136: =A136+B136+C136+D136+E136 -> 0 | I136: =H136*G136:G136 -> 0 | J136: 0 | K136: 0 | L136: 0 | M136: 0
F137: =SUM(F88:F136) -> 14302 | G137: =SUM(G88:G136) -> 567 | H137: 67 | I137: =SUM(I88:I136) -> 863 | J137: =SUM(J88:J136) -> 183971 | K137: =SUM(K88:K136) -> 86466.37 | L137: =SUM(L88:L136) -> 11650.5 | M137: 1892092.5
F138: =SUM(F2:F137)-SUM(F137,F87) -> 43198 | G138: =SUM(G2:G137)-SUM(G137,G87) -> 1675 | H138: 192 | I138: =SUM(I2:I137)-SUM(I137,I87) -> 2530 | J138: =SUM(J2:J137)-SUM(J137,J87) -> 590317 | K138: =SUM(K2:K137)-SUM(K137,K87) -> 342464.35 | L138: =SUM(L2:L137)-SUM(L137,L87) -> 41656.5 | M138: 7370239.5

Sheet Лист3
